fUST/lending_fUST_20251221
["ID","MTS","AMOUNT","RATE_DAILY","PERIOD"]
[399318805,1766291502233,-155.09730309,0.00010356,2]
[399318806,1766291504253,-44.90269691,0.00010356,2]
[399318807,1766291504277,-330.62660777,0.0001039,2]
[399318808,1766291509141,-136.18869379,0.0001039,2]
[399318809,1766291509164,-25.14628896,0.000104,2]
[399318810,1766291510703,-130.52371104,0.000104,2]
[399318811,1766291510724,-155.67,0.000106,2]
[399318812,1766291510749,-21.35613027,0.00010605,2]
[399318813,1766291512734,-320.63877433,0.00010605,2]
[399318814,1766291515911,-185.6041162,0.00010605,2]
[399318815,1766291519589,-300.0,0.00010605,2]
[399318816,1766291525448,-5000.0,0.00010499,2]
[399318817,1766291525592,-1939.3809792,0.00010605,2]
[399318818,1766291528932,457.47899553,0.00010552,2]
[399318819,1766291544444,5000.0,0.00010605,2]
[399318820,1766291549764,611.94,8.836e-05,2]
[399318821,1766291550179,51.82904607,9.639e-05,2]
[399318822,1766291550202,1172.05095393,9.639e-05,2]
[399318823,1766291550590,1835.82,0.00010442,2]
[399318824,1766291552048,-354.29651224,0.00010612,2]
[399318825,1766291552912,719.97580345,0.00010082,2]
[399318826,1766291559734,4935.8746207,0.00010271,2]
[399318827,1766291562819,484.47882144,0.00010344,2]
[399318828,1766291564970,-300.0,0.00010613,2]
[399318838,1766291568408,5000.0,0.00010613,2]
[399318839,1766291572191,2404.26,0.00032876,120]
[399318840,1766291582617,300.0,0.00010613,2]
[399318841,1766291586245,-500.0,0.00010614,2]
[399318842,1766291586274,-158.13088755,0.00010614,2]
[399318843,1766291586304,-574.12855637,0.00010614,2]
[399318844,1766291586333,-2773.56790519,0.00010614,2]
[399318845,1766291586556,406.84180903,9.573e-05,2]
[399318846,1766291588288,732.31525625,9.762e-05,2]
[399318847,1766291590011,849.1982365,9.951e-05,2]
[399318848,1766291590033,452.6955524,9.951e-05,2]
[399318849,1766291591250,2034.20904515,0.0001014,2]
[399318850,1766291591417,5000.0,0.00010614,2]
[399318851,1766291614357,2513.10540245,0.00010614,2]
[399318852,1766291614381,2486.89459755,0.00010614,2]
[399318853,1766291629381,565.21,8.845e-05,2]
[399318854,1766291629840,1130.42,9.649e-05,2]
[399318855,1766291630258,1695.63,0.00010454,2]
[399318856,1766291637825,4121.85540245,0.00010614,2]
[399318857,1766291637847,878.14459755,0.00010614,2]
[399318858,1766291639892,732.52795762,0.00010612,2]
[399318859,1766291642304,150.23313994,0.00010612,3]
[399318860,1766291646248,8239.10430489,0.00010293,2]
[399318861,1766291646273,10000.01,0.00010293,2]
[399318862,1766291646297,10000.01,0.00010293,2]
[399318863,1766291661045,5000.0,0.0001,2]
[399318864,1766291676736,-341.36560619,0.0001003,2]
[399318866,1766291702498,200.0,0.00030298,120]
[399318867,1766291704221,200.0,0.00030298,120]
[399318868,1766291704950,-5000.0,0.00010169,2]
[399318869,1766291705758,200.0,0.00030298,120]
[399318870,1766291706158,-390.13212136,0.00010272,2]
[399318871,1766291707823,547.38,8.333e-05,2]
[399318872,1766291708118,5000.0,0.00010272,2]
[399318873,1766291709531,1094.77,9.09e-05,2]
[399318874,1766291709619,1642.15,9.848e-05,2]
[399318875,1766291723005,-300.0,0.00010292,2]
[399318876,1766291731880,5000.0,0.00010292,2]
[399318877,1766291747166,-500.0,0.00010292,2]
[399318878,1766291747196,-164.6150673,0.00010292,2]
[399318879,1766291747226,-500.0,0.00010292,2]
[399318880,1766291747255,-291.65790008,0.00010292,2]
[399318881,1766291747287,-500.0,0.00010292,2]
[399318882,1766291747317,-574.32448306,0.00010292,2]
[399318883,1766291747347,-344.2892254,0.00010292,2]
[399318884,1766291747376,-500.0,0.00010292,2]
[399318885,1766291747407,-500.0,0.00010292,2]
[399318886,1766291747437,-282.42791019,0.00010292,2]
[399318887,1766291757795,-391.62789792,0.0001019,2]
[399318888,1766291759412,-500.0,0.0001019,2]
[399318889,1766291761019,-4108.37210208,0.0001019,2]
[399318890,1766291761210,-3476.15308088,0.00010293,2]
[399318891,1766291761354,-10000.01,0.00010293,2]
[399318892,1766291761578,-10000.01,0.00010293,2]
[399318893,1766291761726,-10000.01,0.00010293,2]
[399318894,1766291761908,-10000.01,0.00010293,2]
[399318895,1766291762147,-10000.01,0.00010293,2]
[399318896,1766291762321,-10000.01,0.00010293,2]
[399318897,1766291762504,-10000.01,0.00010293,2]
[399318898,1766291762688,-300.0,0.00010292,2]
[399318899,1766291762727,-9400.01,0.00010293,2]
[399318900,1766291772236,-304.5886583,0.00010293,2]
[399318901,1766291787305,544.55,8.277e-05,2]
[399318902,1766291787734,620.49905951,9.03e-05,2]
[399318903,1766291787757,468.60094049,9.03e-05,2]
[399318904,1766291788120,1633.65,9.782e-05,2]
[399318905,1766291788152,2304.09,0.00032876,120]
[399318907,1766291817841,-5000.0,0.0001019,2]
[399318908,1766291823565,0.01,0.0001019,2]
[399318909,1766291823588,4999.99,0.0001019,2]
[399318910,1766291832121,-195.20256876,0.00010291,2]
[399318913,1766291834104,-104.79743124,0.00010291,2]
[399318914,1766291834132,-130.73096623,0.00010292,2]
[399318915,1766291847542,5000.0,0.0001019,2]
[399318916,1766291868215,575.39,8.25e-05,2]
[399318917,1766291868613,1150.78,9e-05,2]
[399318918,1766291869036,1726.16,9.75e-05,2]
[399318919,1766291870481,5000.0,0.00010292,2]
[399318920,1766291877084,-213.08337907,0.00010292,2]
[399318921,1766291878555,-156.1856547,0.00010292,2]
[399318922,1766291878577,-143.8143453,0.00010292,2]
[399318923,1766291882658,300.0,0.00010291,2]
[399318924,1766291884486,281.72,4.995e-05,3]
[399318925,1766291885053,281.72,4.995e-05,3]
[399318926,1766291886848,188.97507493,9.918e-05,2]
[399318927,1766291888530,340.15513487,0.00010291,2]
[399318928,1766291892133,-356.1856547,0.00010292,2]
[399318929,1766291892157,-92.1094541,0.00010292,2]
[399318933,1766291893316,155.1097902,0.00010292,2]
[399318934,1766291893341,4844.8902098,0.00010292,2]
[399318935,1766291916649,5000.0,0.00010292,2]
[399318936,1766291922760,-386.44536367,0.00010292,2]
[399318937,1766291929110,-21.44518223,0.00010292,2]
[399318938,1766291929138,-214.08321524,0.00010292,2]
[399318939,1766291940091,155.1197902,0.00010292,2]
[399318940,1766291940117,4844.8802098,0.00010292,2]
[399318941,1766291942667,300.0,0.00010291,2]
[399318942,1766291953634,551.86,8.592e-05,2]
[399318943,1766291954050,1103.72,9.373e-05,2]
[399318944,1766291954452,1655.57,0.00010154,2]
[399318945,1766291957906,385.93298008,9.929e-05,2]
[399318946,1766291960418,441.06626295,0.00010172,2]
[399318947,1766291963587,716.98054717,0.00010292,2]
[399318948,1766291963609,4283.01945283,0.00010292,2]
[399318949,1766291986589,5000.0,0.00010292,2]
[399318950,1766292002155,300.0,0.00010291,2]
[399318951,1766292003162,416.99054717,0.00010291,2]
[399318952,1766292003189,783.00945283,0.00010291,2]
[399318953,1766292009658,5000.0,0.00010292,2]
[399318956,1766292028949,652.7057935,9.668e-05,2]
[399318957,1766292032810,521.1,8.734e-05,2]
[399318958,1766292033222,1042.21,9.527e-05,2]
[399318959,1766292033256,2000.98475367,0.00010292,2]
[399318960,1766292033281,2999.01524633,0.00010292,2]
[399318961,1766292039168,822.0,0.00032876,120]
[399318962,1766292041559,2208.08,0.00032876,120]
[399318963,1766292056207,5000.0,0.00010293,2]
[399318964,1766292062364,300.0,0.00010292,2]
[399318965,1766292071330,522.0,0.00032876,120]
[399318966,1766292079151,5000.0,0.00010293,2]
[399318967,1766292101756,322.0,0.00032876,120]
[399318968,1766292102110,4700.01,0.00010293,2]
[399318969,1766292102132,299.99,0.00010293,2]
[399318970,1766292107809,500.0,0.00032876,120]
[399318971,1766292112969,501.21,8.582e-05,2]
[399318972,1766292113390,1002.41,9.362e-05,2]
[399318973,1766292113837,1503.62,0.00010143,2]
[399318974,1766292123026,300.0,0.00010292,2]
[399318975,1766292125167,5000.0,0.00010293,2]
[399318976,1766292126031,639.49341512,0.00010292,2]
[399318977,1766292127384,-465.05139281,0.00010293,2]
[399318978,1766292134135,622.0,0.00032876,120]
[399318979,1766292137211,-1824.18855293,0.00010293,2]
[399318980,1766292137301,-10000.01,0.00010293,2]
[399318981,1766292137474,-3747.5346263,0.00010293,2]
[399318982,1766292146148,500.0,0.00010292,2]
[399318983,1766292146181,454.62105377,0.00010292,2]
[399318984,1766292146245,500.0,0.00010292,2]
[399318985,1766292146287,500.0,0.00010292,2]
[399318986,1766292148697,-321.88104696,0.00010504,2]
[399318987,1766292149286,5000.0,0.00010399,2]
[399318988,1766292155396,435.75909099,0.00010082,2]
[399318989,1766292157118,500.0,0.00010292,2]
[399318990,1766292157162,500.0,0.00010292,2]
[399318991,1766292157229,500.0,0.00010292,2]
[399318992,1766292157280,250.0,0.00010292,2]
[399318993,1766292157332,500.0,0.00010292,2]
[399318994,1766292157908,224.6089603,0.00010082,2]
[399318995,1766292160669,385.76216799,0.00010504,2]
[399318996,1766292163237,1534.15941634,0.00010008,2]
[399318997,1766292166281,897.53740536,0.00010082,2]
[399318998,1766292172311,5000.0,0.00010508,2]
[399318999,1766292174464,500.0,0.00010292,2]
[399319000,1766292174520,308.43159463,0.00010292,2]
[399319001,1766292187058,190.70855034,9.687e-05,2]
[399319002,1766292189116,343.27539061,9.931e-05,2]
[399319003,1766292189970,500.0,0.00010292,2]
[399319004,1766292190024,340.13547473,0.00010292,2]
[399319005,1766292190047,159.86452527,0.00010292,2]
[399319006,1766292190081,500.0,0.00010292,2]
[399319007,1766292190133,490.16874799,0.00010292,2]
[399319008,1766292190162,500.0,0.00010292,2]
[399319009,1766292190202,250.0,0.00010292,2]
[399319010,1766292191106,610.26736109,0.00010175,2]
[399319011,1766292194518,503.06,8.727e-05,2]
[399319012,1766292194951,1006.12,9.52e-05,2]
[399319013,1766292195371,1509.19,0.00010313,2]
[399319014,1766292195935,4471.33936565,0.00010508,2]
[399319015,1766292195960,528.66063435,0.00010508,2]
[399319016,1766292196382,500.0,0.00010292,2]
[399319017,1766292208619,500.0,0.00010292,2]
[399319018,1766292209919,500.0,0.00010292,2]
[399319019,1766292209956,500.0,0.00010292,2]
[399319020,1766292209985,500.0,0.00010292,2]
[399319021,1766292210015,647.05224876,0.00010292,2]
[399319022,1766292210047,500.0,0.00010292,2]
[399319023,1766292210075,500.0,0.00010292,2]
[399319024,1766292210104,500.0,0.00010292,2]
[399319025,1766292210135,500.0,0.00010292,2]
[399319026,1766292210524,500.0,0.00010292,2]
[399319027,1766292212859,212.0,0.00032876,120]
[399319028,1766292219495,3824.29711689,0.00010508,2]
[399319029,1766292219518,1175.70288311,0.00010508,2]
[399319030,1766292237168,-214.90907009,0.00010518,3]
[399319031,1766292239264,-189.24179487,0.00010518,3]
[399319032,1766292242567,5000.0,0.00010508,2]
[399319033,1766292245968,196.18076224,9.992e-05,2]
[399319034,1766292252093,2116.08,0.00032876,120]
[399319035,1766292259787,10000.0,0.0003287,120]
[399319036,1766292266558,3628.12635465,0.00010508,2]
[399319037,1766292269551,10000.0,0.0003287,120]
[399319039,1766292275392,547.86,8.318e-05,2]
[399319040,1766292275794,1095.72,9.074e-05,2]
[399319041,1766292276199,1643.57,9.83e-05,2]
[399319042,1766292282340,564.08453833,0.00010498,2]
[399319043,1766292293584,10000.0,0.0003287,120]
[399319044,1766292300432,10000.0,0.0003287,120]
[399319045,1766292319010,10000.0,0.0003287,120]
[399319046,1766292329473,10000.0,0.0003287,120]
[399319047,1766292336038,10000.0,0.0003287,120]
[399319048,1766292354510,517.62,8.295e-05,2]
[399319049,1766292354914,1035.24,9.049e-05,2]
[399319050,1766292355309,1552.86,9.803e-05,2]
[399319051,1766292430131,-1371.87364535,0.00010508,2]
[399319052,1766292430153,-392.54066727,0.00010518,3]
[399319053,1766292430175,-455.75036496,0.00010568,2]
[399319054,1766292430198,-2773.56790519,0.00010612,2]
[399319055,1766292430218,-300.0,0.00010613,2]
[399319056,1766292430238,-212.76947131,0.00010614,2]
[399319057,1766292430260,-250.0,0.00010614,2]
[399319058,1766292430281,-500.0,0.00010614,2]
[399319059,1766292430303,-500.0,0.00010614,2]
[399319060,1766292430327,-467.18011709,0.00010614,2]
[399319061,1766292430349,-516.33913875,0.00010614,2]
[399319062,1766292430370,-500.0,0.00010614,2]
[399319063,1766292430391,-500.0,0.00010614,2]
[399319064,1766292430413,-500.0,0.00010614,2]
[399319065,1766292430432,-13965.11524635,0.00010615,2]
[399319066,1766292433941,524.17,8.253e-05,2]
[399319067,1766292434057,1048.33,9.003e-05,2]
[399319068,1766292434374,1470.55546167,9.754e-05,2]
[399319069,1766292434398,101.94453833,9.754e-05,2]
[399319070,1766292447814,5000.0,0.00010498,2]
[399319084,1766292470435,4898.06546167,0.00010498,2]
[399319085,1766292470458,101.93453833,0.00010498,2]
[399319086,1766292476980,321.01965353,0.00010249,2]
[399319087,1766292482987,156.06,0.0001,2]
[399319088,1766292485356,156.06,0.000102,2]
[399319089,1766292493340,5000.0,0.00010498,2]
[399319090,1766292513131,515.15,8.263e-05,2]
[399319091,1766292513252,1030.29,9.014e-05,2]
[399319092,1766292514176,1545.44,9.765e-05,2]
[399319093,1766292517398,1174.05580814,0.00010498,2]
[399319094,1766292517421,3825.94419186,0.00010498,2]
[399319095,1766292540244,5000.0,0.00010498,2]
[399319096,1766292557044,171.49764202,9.519e-05,2]
[399319097,1766292558609,308.69575563,0.00010006,2]
[399319098,1766292560394,548.79245445,0.00010249,2]
[399319099,1766292563603,145.07995604,0.00010498,2]
[399319100,1766292563628,4854.92004396,0.00010498,2]
[399319101,1766292580219,5000.0,0.00010498,2]
[399319102,1766292588572,145.08995604,0.00010498,2]
[399319103,1766292588594,4854.91004396,0.00010498,2]
[399319104,1766292594840,1000.0,0.00032877,120]
[399319105,1766292595793,500.26,8.3e-05,2]
[399319106,1766292596219,1000.52,9.055e-05,2]
[399319107,1766292596657,1500.78,9.81e-05,2]
[399319108,1766292604396,2143.53995604,0.00010498,2]
[399319109,1766292604421,2856.46004396,0.00010498,2]
[399319110,1766292612899,5000.0,0.00010498,2]
[399319111,1766292616978,200.0,0.00030169,120]
[399319112,1766292619088,200.0,0.00030169,120]
[399319113,1766292619504,1000.0,0.00032877,120]
[399319114,1766292620964,377.57435406,0.00030169,120]
[399319115,1766292628340,2000.0,0.00032876,120]
[399319116,1766292628434,1000.0,0.00032877,120]
[399319117,1766292628766,1744.89719936,0.00010498,2]
[399319228,1766292636679,398.65275668,0.00010498,2]
[399319229,1766292636702,4601.34724332,0.00010498,2]
[399319230,1766292637074,1000.0,0.00032877,120]
[399319243,1766292638131,-171.0,0.00010517,2]
[399319245,1766292638141,-3381.21981522,0.00010518,2]
[399319246,1766292638187,-538.362,0.00010518,2]
[399319250,1766292638337,-2578.34850625,0.00010518,2]
[399319251,1766292638349,-380.58664504,0.00010518,2]
[399319264,1766292640340,-14436.7431375,0.00010518,2]
[399319265,1766292640607,-3e-08,0.00010518,2]
[399319269,1766292643215,-24596.61724827,0.00010518,2]
[399319270,1766292643226,-500.0,0.00010518,2]
[399319271,1766292646009,1000.0,0.00032877,120]
[399319275,1766292646984,-5480.88946887,0.00010518,2]
[399319276,1766292656320,1000.0,0.00032877,120]
[399319277,1766292660878,5000.0,0.00010498,2]
[399319278,1766292662761,150.21,0.0001,2]
[399319279,1766292665151,150.21,0.000102,2]
[399319280,1766292667543,150.21,0.000104,2]
[399319281,1766292672755,1000.0,0.00032877,120]
[399319282,1766292674867,495.4,8.266e-05,2]
[399319283,1766292675275,990.79,9.017e-05,2]
[399319284,1766292675683,1486.19,9.768e-05,2]
[399319285,1766292676650,2222.24561962,0.00010498,2]
[399319286,1766292682181,1000.0,0.00032877,120]
[399319287,1766292684499,4504.96438038,0.00010498,2]
[399319288,1766292684524,495.03561962,0.00010498,2]
[399319289,1766292689209,1000.0,0.00032877,120]
[399319290,1766292700454,2777.75438038,0.00010498,2]
[399319291,1766292701409,307.3206071,0.00032877,120]
[399319292,1766292708575,5000.0,0.00010498,2]
[399319293,1766292718671,2000.0,0.00032876,120]
[399319294,1766292718706,-999.24742259,0.00010517,2]
[399319295,1766292724414,1000.0,0.00032877,120]
[399319296,1766292730398,1000.0,0.00032877,120]
[399319297,1766292732609,5000.0,0.00010517,2]
[399319298,1766292732679,2027.91,0.00032876,120]
[399319299,1766292737838,-300.0,0.00010517,2]
[399319300,1766292740456,2000.0,0.00032876,120]
[399319301,1766292741548,1000.0,0.00032877,120]
[399319302,1766292747411,1000.0,0.00032877,120]
[399319303,1766292754236,468.46,8.261e-05,2]
[399319304,1766292754487,489.51022287,0.00010041,2]
[399319305,1766292754668,936.92,9.013e-05,2]
[399319306,1766292755527,1405.37,9.764e-05,2]
[399319307,1766292755959,1873.83,0.00010515,2]
[399319308,1766292756744,4225.91977713,0.00010517,2]
[399319309,1766292756765,774.08022287,0.00010517,2]
[399319310,1766292770893,309.23735239,0.00010187,2]
[399319311,1766292781272,5000.0,0.00010517,2]
[399319312,1766292786777,2000.0,0.00032876,120]
[399319313,1766292796824,881.80617664,0.00010517,2]
[399319314,1766292804885,3034.8862481,0.00010517,2]
[399319315,1766292804907,1965.1137519,0.00010517,2]
[399319316,1766292829567,5000.0,0.00010517,2]
[399319317,1766292834451,408.84,8.263e-05,2]
[399319318,1766292834854,817.67,9.014e-05,2]
[399319319,1766292835268,1226.51,9.765e-05,2]
[399319320,1766292835672,1635.34,0.00010517,2]
[399319321,1766292838100,911.65,0.00010517,2]
[399319322,1766292838122,10000.01,0.00010517,2]
[399319323,1766292846512,150.43,0.0001,2]
[399319324,1766292848888,150.43,0.000102,2]
[399319325,1766292852981,5000.0,0.00010497,2]
[399319326,1766292866555,408.21610347,9.963e-05,2]
[399319327,1766292869452,466.53268968,0.00010207,2]
[399319328,1766292869622,2049.0,0.00032,120]
[399319329,1766292870191,10000.0,0.0003287,120]
[399319330,1766292876084,3824.40120685,0.00010497,2]
[399319331,1766292876107,1175.59879315,0.00010497,2]
[399319332,1766292899099,5000.0,0.00010497,2]
[399319333,1766292912574,383.53,8.234e-05,2]
[399319334,1766292913027,767.05,8.983e-05,2]
[399319335,1766292913411,1150.58,9.732e-05,2]
[399319336,1766292914358,1523.25120685,0.0001048,2]
[399319337,1766292922591,5000.0,0.00010437,2]
[399319338,1766292938385,5000.0,0.00010437,2]
[399319339,1766292946220,0.01,0.00010437,2]
[399319340,1766292992090,363.81,8.243e-05,2]
[399319341,1766292992491,727.63,8.992e-05,2]
[399319342,1766292993494,1091.44,9.741e-05,2]
[399319343,1766293001145,999.0,0.00032876,120]
[399319344,1766293013005,-4999.99,0.00010437,2]
[399319345,1766293014895,0.03,0.00010427,2]
[399319346,1766293014918,4999.97,0.00010427,2]
[399319347,1766293022933,167.26,0.0001,2]
[399319348,1766293025305,167.26,0.000102,2]
[399319349,1766293027662,167.26,0.000104,2]
[399319371,1766293037805,4498.26,0.00010437,2]
[399319372,1766293037831,501.74,0.00010437,2]
[399319411,1766293060640,5000.0,0.00010437,2]
[399319412,1766293071203,336.03,8.374e-05,2]
[399319413,1766293071597,672.06,9.135e-05,2]
[399319414,1766293072017,1008.1,9.897e-05,2]
[399319415,1766293072623,322.69203297,9.967e-05,2]
[399319416,1766293074192,368.79089482,0.00010215,2]
[399319417,1766293083592,1790.59707221,0.00010437,2]
[399319418,1766293083623,3209.40292779,0.00010437,2]
[399319419,1766293106493,5000.0,0.00010437,2]
[399319420,1766293108378,1790.60707221,9.517e-05,2]
[399319421,1766293108402,652.76839179,9.517e-05,2]
[399319422,1766293129994,5000.0,0.00010437,2]
[399319423,1766293152181,310.37,8.229e-05,2]
[399319424,1766293152984,620.74,8.977e-05,2]
[399319425,1766293153376,931.11,9.725e-05,2]
[399319426,1766293154479,2485.02160821,0.00010437,2]
[399319427,1766293154502,2514.97839179,0.00010437,2]
[399319428,1766293177990,5000.0,0.00010437,2]
[399319429,1766293178428,2000.0,0.00032876,120]
[399319430,1766293188790,2000.0,0.00032876,120]
[399319431,1766293201528,2485.03160821,0.00010437,2]
[399319432,1766293201553,2514.96839179,0.00010437,2]
[399319433,1766293211004,1901.79,0.00032876,120]
[399319434,1766293227807,-1137.81588629,0.00010473,2]
[399319435,1766293239432,272.19,8.259e-05,2]
[399319436,1766293239831,544.38,9.01e-05,2]
[399319437,1766293240267,816.57,9.761e-05,2]
[399319438,1766293242185,-198.1061758,0.00010473,2]
[399319439,1766293242214,-195.11636417,0.00010512,2]
[399319440,1766293245497,-445.12190602,0.00010512,2]
[399319441,1766293246975,-163.386481,0.00010512,2]
[399319442,1766293248960,-285.13524881,0.00010512,2]
[399319443,1766293248984,-90.07069502,0.00010513,2]
[399319444,1766293250084,-490.92930498,0.00010513,2]
[399319445,1766293250111,-117.59666959,0.00010513,2]
[399319446,1766293318736,237.55,8.292e-05,2]
[399319447,1766293319176,475.09,9.046e-05,2]
[399319448,1766293319581,712.64,9.8e-05,2]
[399319505,1766293353478,324.01,0.00032876,120]
[399319553,1766293362777,-326.91527904,0.00010512,2]
[399319554,1766293364346,181.35360274,0.00010014,2]
[399319555,1766293378377,-201.50629192,0.00010512,2]
[399319556,1766293380117,-250.0,0.00010512,2]
[399319560,1766293391639,270.98140529,9.754e-05,2]
[399319562,1766293393116,487.76652953,0.00010005,2]
[399319563,1766293395329,867.14049694,0.00010255,2]
[399319564,1766293399534,219.41,8.303e-05,2]
[399319565,1766293399580,438.81,9.058e-05,2]
[399319566,1766293400028,658.22,9.813e-05,2]
[399319567,1766293407351,3817.9079655,0.00010437,2]
[399319568,1766293407374,1182.0920345,0.00010437,2]
[399319569,1766293430361,5000.0,0.00010437,2]
[399319570,1766293454378,3817.9179655,0.00010437,2]
[399319571,1766293455242,151.32196043,0.00010014,2]
[399319572,1766293459112,1096.388143,0.00030137,120]
[399319573,1766293465311,1822.55,0.00032876,120]
[399319574,1766293479362,202.65,8.305e-05,2]
[399319575,1766293479766,405.3,9.06e-05,2]
[399319576,1766293480167,607.96,9.815e-05,2]
[399319577,1766293559258,187.18,8.275e-05,2]
[399319578,1766293559668,374.35,9.028e-05,2]
[399319579,1766293560066,561.53,9.78e-05,2]
[399319580,1766293617676,-185.77861763,0.00010437,2]
[399319581,1766293618802,-194.15632246,0.00010437,2]
[399319582,1766293620945,-242.33004272,0.00010437,2]
[399319583,1766293623334,-198.80908739,0.00010437,2]
[399319584,1766293626658,-199.58608623,0.00010437,2]
[399319585,1766293628893,-161.42187807,0.00010437,2]
[399319586,1766293628918,-56.44102727,0.0001051,2]
[399319587,1766293630381,-386.76603342,0.0001051,2]
[399319588,1766293633948,-56.79293931,0.0001051,2]
[399319589,1766293633969,-241.05956925,0.0001051,2]
[399319590,1766293634282,5000.0,0.00010434,2]
[399319591,1766293634838,2509.71803957,0.00010412,2]
[399319592,1766293634864,10000.01,0.00010412,2]
[399319593,1766293634892,10000.01,0.00010412,2]
[399319594,1766293634919,10000.01,0.00010412,2]
[399319595,1766293634948,10000.01,0.00010412,2]
[399319596,1766293634974,10000.01,0.00010412,2]
[399319597,1766293639704,172.88,8.27e-05,2]
[399319598,1766293640100,345.77,9.022e-05,2]
[399319599,1766293640508,518.65,9.774e-05,2]
[399319602,1766293665893,-5000.0,0.00010308,2]
[399319603,1766293667572,0.01,0.00010014,2]
[399319604,1766293667595,649.06605056,0.00010014,2]
[399319605,1766293673555,4155.10920613,0.00010402,2]
[399319606,1766293681563,5000.0,0.00010402,2]
[399319607,1766293684479,195.83474331,4.995e-05,2]
[399319608,1766293684501,1.37525669,4.995e-05,2]
[399319609,1766293684751,197.19,4.995e-05,2]
[399319610,1766293684781,174.52581672,9.543e-05,2]
[399319611,1766293686513,314.14647009,9.978e-05,2]
[399319612,1766293688185,558.4826135,0.00010195,2]
[399319613,1766293697334,1746.61,0.00032876,120]
[399319614,1766293706804,5000.0,0.00010402,2]
[399319615,1766293719436,313.77,9.571e-05,2]
[399319616,1766293726367,353.0,0.00032877,120]
[399319617,1766293731290,3440.519843,0.00010402,2]
[399319618,1766293731315,1559.480157,0.00010402,2]
[399319619,1766293754054,5000.0,0.00010402,2]
[399319620,1766293767085,-300.0,0.0001041,2]
[399319621,1766293767108,-56.03372486,0.00010411,2]
[399319622,1766293769877,-211.11128396,0.00010411,2]
[399319623,1766293772553,-230.78617093,0.00010411,2]
[399319624,1766293774153,-272.31389483,0.00010411,2]
[399319625,1766293774176,-48.6656996,0.00010411,2]
[399319626,1766293775168,198.1632379,9.753e-05,2]
[399319627,1766293777411,356.69382823,9.971e-05,2]
[399319628,1766293778888,634.12236129,0.00010188,2]
[399319629,1766293800003,322.78,8.321e-05,2]
[399319630,1766293800420,645.56,9.077e-05,2]
[399319631,1766293800825,968.34,9.834e-05,2]
[399319635,1766293832334,-300.0,0.0001041,2]
[399319636,1766293832344,-234.64380724,0.0001041,2]
[399319637,1766293832392,-713.27077087,0.0001041,2]
[399319671,1766293838369,-252.08542189,0.0001041,2]
[399319672,1766293838382,-300.0,0.0001041,2]
[399319673,1766293838392,-300.0,0.0001041,2]
[399319674,1766293838401,-500.0,0.0001041,2]
[399319675,1766293838411,-212.34174906,0.0001041,2]
[399319676,1766293838420,-40.80046853,0.00010411,2]
[399319677,1766293838429,-5565.00515847,0.00010412,2]
[399319678,1766293838440,-479.50755848,0.00010412,2]
[399319679,1766293838451,-689.99231085,0.00010412,2]
[399319680,1766293838480,-745.20190271,0.00010412,2]
[399319696,1766293840571,-9156.633293,0.00010412,2]
[399319697,1766293840822,-3e-08,0.00010412,2]
[399319698,1766293840835,-25849.42175035,0.00010412,2]
[399319699,1766293840847,-397.43212976,0.00010412,2]